[Event "Open Nuevo Centro. Jornada 2"]
[Site "Chess.com"]
[Date "2020.06.26"]
[Round "4"]
[White "Rojo Everss, Noel"]
[Black "Valero Artagoitia, Sara"]
[Result "1-0"]
[WhiteElo "805"]
[BlackElo "518"]
[TimeControl "180+2"]
[EndTime "11:14:11 PDT"]
[Termination "Victoria de NoelRoEv por tiempo"]

1. e4 {[%clk 0:03:01.9]} 1... e5 {[%clk 0:02:59.2]} 2. Bb5 {[%clk 0:02:59.6]}
2... Nc6 {[%clk 0:02:58.3]} 3. d4 {[%clk 0:02:56.2]} 3... Bb4+ {[%clk
0:02:48.4]} 4. c3 {[%clk 0:02:53.8]} 4... Be7 {[%clk 0:02:39.5]} 5. Nf3 {[%clk
0:02:51.1]} 5... Bf6 {[%clk 0:02:35.7]} 6. Na3 {[%clk 0:02:46.5]} 6... d6 {[%clk
0:02:20.8]} 7. Nc4 {[%clk 0:02:45.1]} 7... a6 {[%clk 0:02:09.8]} 8. dxe5 {[%clk
0:02:36]} 8... Bxe5 {[%clk 0:02:02.2]} 9. Ncxe5 {[%clk 0:02:31.3]} 9... dxe5
{[%clk 0:01:58.1]} 10. Bg5 {[%clk 0:02:29.8]} 10... Nf6 {[%clk 0:01:55.1]} 11.
Qxd8+ {[%clk 0:02:23]} 11... Kxd8 {[%clk 0:01:49]} 12. Rd1+ {[%clk 0:02:23.1]}
12... Bd7 {[%clk 0:01:41]} 13. O-O {[%clk 0:02:12.1]} 13... axb5 {[%clk
0:01:38.6]} 14. a4 {[%clk 0:02:09.2]} 14... bxa4 {[%clk 0:01:34]} 15. Rd4 {[%clk
0:02:03.9]} 15... Nxd4 {[%clk 0:01:28.8]} 16. Nxd4 {[%clk 0:02:02.6]} 16... exd4
{[%clk 0:01:27.9]} 17. cxd4 {[%clk 0:02:03]} 17... h6 {[%clk 0:01:27.3]} 18. Bd2
{[%clk 0:01:58.7]} 18... Re8 {[%clk 0:01:14.4]} 19. e5 {[%clk 0:01:59]} 19...
Ne4 {[%clk 0:01:12]} 20. e6 {[%clk 0:01:53.9]} 20... Bxe6 {[%clk 0:01:06]} 21.
d5 {[%clk 0:01:51.3]} 21... Nxd2 {[%clk 0:01:01.7]} 22. Rd1 {[%clk 0:01:48.1]}
22... Nc4 {[%clk 0:00:52.7]} 23. d6 {[%clk 0:01:45.7]} 23... cxd6 {[%clk
0:00:49.6]} 24. Rd4 {[%clk 0:01:41.1]} 24... Nxb2 {[%clk 0:00:47]} 25. Rxd6+
{[%clk 0:01:38.6]} 25... Bd7 {[%clk 0:00:43.6]} 26. Rd2 {[%clk 0:01:37.1]} 26...
a3 {[%clk 0:00:43.3]} 27. Rd1 {[%clk 0:01:29.5]} 27... a2 {[%clk 0:00:43.4]} 28.
Ra1 {[%clk 0:01:25.8]} 28... Re1+ {[%clk 0:00:34.8]} 29. Rxe1 {[%clk 0:01:23.3]}
29... Nd3 {[%clk 0:00:32.1]} 30. Ra1 {[%clk 0:01:20.3]} 30... Nb4 {[%clk
0:00:29.3]} 31. h3 {[%clk 0:01:13.6]} 31... Ra3 {[%clk 0:00:27.5]} 32. g4 {[%clk
0:01:08]} 32... Nc2 {[%clk 0:00:26]} 33. g5 {[%clk 0:01:02.6]} 33... Nxa1 {[%clk
0:00:25.8]} 34. gxh6 {[%clk 0:00:59.1]} 34... Nc2 {[%clk 0:00:26.9]} 35. hxg7
{[%clk 0:00:59.2]} 35... a1=Q+ {[%clk 0:00:26.5]} 36. Kg2 {[%clk 0:00:58.4]}
36... Nd4 {[%clk 0:00:25.1]} 37. g8=Q+ {[%clk 0:00:57.3]} 37... Be8 {[%clk
0:00:22.8]} 38. Qg4 {[%clk 0:00:53.9]} 38... Nc2 {[%clk 0:00:20.4]} 39. Qe2
{[%clk 0:00:50]} 39... Qb2 {[%clk 0:00:18.2]} 40. h4 {[%clk 0:00:41.1]} 40...
Qc3 {[%clk 0:00:18.3]} 41. h5 {[%clk 0:00:40.9]} 41... Qg3+ {[%clk 0:00:17.7]}
42. Kf1 {[%clk 0:00:40.7]} 42... Qh2 {[%clk 0:00:13.2]} 43. f4 {[%clk
0:00:36.8]} 43... Rg3 {[%clk 0:00:11.3]} 44. Qxh2 {[%clk 0:00:31.7]} 44... Rf3+
{[%clk 0:00:04.4]} 45. Kg2 {[%clk 0:00:29.6]} 45... Rxf4 {[%clk 0:00:05.1]} 46.
h6 {[%clk 0:00:29.4]} 46... Rg4+ {[%clk 0:00:04.9]} 47. Kf3 {[%clk 0:00:26.4]}
47... Ne1+ {[%clk 0:00:05.4]} 48. Ke2 {[%clk 0:00:22.9]} 48... Bb5+ {[%clk
0:00:03.5]} 49. Kf2 {[%clk 0:00:21]} 49... Rf4+ {[%clk 0:00:03.8]} 50. Kg3
{[%clk 0:00:21]} 1

[Event "Open Nuevo Centro. Jornada 2"]
[Site "Chess.com"]
[Date "2020.06.26"]
[Round "4"]
[White "Martínez Cuenca, Jose Andrés"]
[Black "Rodriguez Rodriguez, Joan David "]
[Result "0-1"]
[WhiteElo "1066"]
[BlackElo "1611"]
[TimeControl "180+2"]
[EndTime "11:14:14 PDT"]
[Termination "Victoria de Not_Jr_chess por tiempo"]

1. e4 {[%clk 0:03:01.9]} 1... e5 {[%clk 0:03:01.2]} 2. Qh5 {[%clk 0:03:02.1]}
2... Nc6 {[%clk 0:03:00.9]} 3. Bc4 {[%clk 0:03:01.5]} 3... g6 {[%clk 0:03:01.9]}
4. Qf3 {[%clk 0:03:02.6]} 4... Nf6 {[%clk 0:03:03.5]} 5. Qd1 {[%clk 0:02:59.9]}
5... Bg7 {[%clk 0:03:03.3]} 6. Nc3 {[%clk 0:02:56.6]} 6... O-O {[%clk
0:03:03.6]} 7. Nf3 {[%clk 0:02:56]} 7... d6 {[%clk 0:03:04.3]} 8. d3 {[%clk
0:02:56.2]} 8... Bg4 {[%clk 0:02:47.5]} 9. Be3 {[%clk 0:02:55.1]} 9... Ne8
{[%clk 0:02:18.5]} 10. h3 {[%clk 0:02:51.2]} 10... Be6 {[%clk 0:02:15.5]} 11.
O-O {[%clk 0:02:50.1]} 11... Nd4 {[%clk 0:02:15]} 12. Bxd4 {[%clk 0:02:27.7]}
12... exd4 {[%clk 0:02:16.9]} 13. Ne2 {[%clk 0:02:28.3]} 13... c5 {[%clk
0:02:11.5]} 14. Bxe6 {[%clk 0:02:21.3]} 14... fxe6 {[%clk 0:02:12.3]} 15. c3
{[%clk 0:02:17.4]} 15... dxc3 {[%clk 0:01:57.5]} 16. bxc3 {[%clk 0:02:16.5]}
16... Rc8 {[%clk 0:01:49.7]} 17. d4 {[%clk 0:02:16.4]} 17... cxd4 {[%clk
0:01:48.1]} 18. cxd4 {[%clk 0:02:17.4]} 18... Qd7 {[%clk 0:01:38.3]} 19. Rc1
{[%clk 0:02:16.8]} 19... Nc7 {[%clk 0:01:36.2]} 20. Qb3 {[%clk 0:01:58.5]} 20...
d5 {[%clk 0:01:10.5]} 21. exd5 {[%clk 0:01:55.2]} 21... Nxd5 {[%clk 0:01:12.4]}
22. Rxc8 {[%clk 0:01:50.4]} 22... Rxc8 {[%clk 0:01:14.3]} 23. Rc1 {[%clk
0:01:50.4]} 23... Rxc1+ {[%clk 0:00:59.4]} 24. Nxc1 {[%clk 0:01:49.1]} 24... Nf4
{[%clk 0:00:57.9]} 25. Nd3 {[%clk 0:01:29.9]} 25... Ne2+ {[%clk 0:00:48.6]} 26.
Kf1 {[%clk 0:01:27.1]} 26... Nxd4 {[%clk 0:00:49.7]} 27. Nxd4 {[%clk 0:01:25.4]}
27... Bxd4 {[%clk 0:00:51.6]} 28. Nb2 {[%clk 0:01:11.4]} 28... Qd5 {[%clk
0:00:37]} 29. Qxd5 {[%clk 0:01:02.5]} 29... exd5 {[%clk 0:00:38.9]} 30. Nd3
{[%clk 0:01:02.6]} 30... Kf7 {[%clk 0:00:35.9]} 31. Ke2 {[%clk 0:01:03.4]} 31...
Ke7 {[%clk 0:00:31.8]} 32. f3 {[%clk 0:01:04]} 32... Kd6 {[%clk 0:00:30.4]} 33.
Kd2 {[%clk 0:01:03.8]} 33... a5 {[%clk 0:00:27.5]} 34. Kc2 {[%clk 0:01:03.5]}
34... b5 {[%clk 0:00:27.3]} 35. Kb3 {[%clk 0:01:03.3]} 35... Kc6 {[%clk
0:00:25.6]} 36. a3 {[%clk 0:00:52.6]} 36... Bc5 {[%clk 0:00:16.3]} 37. Nxc5
{[%clk 0:00:38.5]} 37... Kxc5 {[%clk 0:00:18.2]} 38. g4 {[%clk 0:00:37.1]} 38...
Kd4 {[%clk 0:00:18.7]} 39. a4 {[%clk 0:00:35.2]} 39... b4 {[%clk 0:00:19.3]} 40.
Kc2 {[%clk 0:00:24.7]} 40... Ke3 {[%clk 0:00:20.3]} 41. h4 {[%clk 0:00:19]}
41... d4 {[%clk 0:00:20.8]} 42. h5 {[%clk 0:00:16.9]} 42... gxh5 {[%clk
0:00:20.7]} 43. gxh5 {[%clk 0:00:17.5]} 43... Ke2 {[%clk 0:00:19.7]} 44. f4
{[%clk 0:00:16.5]} 44... d3+ {[%clk 0:00:21.6]} 45. Kc1 {[%clk 0:00:10.3]} 45...
d2+ {[%clk 0:00:23.5]} 46. Kc2 {[%clk 0:00:11.1]} 46... d1=Q+ {[%clk 0:00:25.4]}
47. Kb2 {[%clk 0:00:10.7]} 47... Qxa4 {[%clk 0:00:24.1]} 48. f5 {[%clk
0:00:10.4]} 48... Qa3+ {[%clk 0:00:24.3]} 49. Kc2 {[%clk 0:00:09.5]} 49... Qc3+
{[%clk 0:00:26.2]} 50. Kb1 {[%clk 0:00:08.7]} 50... b3 {[%clk 0:00:25.1]} 51. f6
{[%clk 0:00:08.6]} 51... Qc2+ {[%clk 0:00:26]} 0

[Event "Open Nuevo Centro. Jornada 2"]
[Site "Chess.com"]
[Date "2020.06.26"]
[Round "4"]
[White "Campos Gambuti, Luis María"]
[Black "Segarra Martinez, Axel"]
[Result "1/2-1/2"]
[WhiteElo "2411"]
[BlackElo "2190"]
[TimeControl "180+2"]
[EndTime "11:14:15 PDT"]
[Termination "Tablas por rey ahogado"]

1. d4 {[%clk 0:03:01.9]} 1... Nf6 {[%clk 0:01:58.2]} 2. Nc3 {[%clk 0:03:02.2]}
2... d5 {[%clk 0:01:58.4]} 3. Bg5 {[%clk 0:03:01.9]} 3... Nbd7 {[%clk
0:02:00.3]} 4. Qd3 {[%clk 0:03:01.9]} 4... h6 {[%clk 0:02:00.5]} 5. Bh4 {[%clk
0:03:02]} 5... e6 {[%clk 0:02:01.5]} 6. e4 {[%clk 0:03:02.3]} 6... dxe4 {[%clk
0:02:02.9]} 7. Nxe4 {[%clk 0:03:04]} 7... Be7 {[%clk 0:02:04.8]} 8. Nxf6+ {[%clk
0:03:05.4]} 8... Nxf6 {[%clk 0:02:06.7]} 9. Nf3 {[%clk 0:03:04.4]} 9... O-O
{[%clk 0:02:07.4]} 10. O-O-O {[%clk 0:03:04.6]} 10... b6 {[%clk 0:02:06.3]} 11.
Bxf6 {[%clk 0:03:00]} 11... Bxf6 {[%clk 0:02:07.2]} 12. Qe4 {[%clk 0:03:01.6]}
12... Bd7 {[%clk 0:02:05.3]} 13. Bd3 {[%clk 0:03:02.4]} 13... g6 {[%clk
0:02:05.7]} 14. Ne5 {[%clk 0:03:03.2]} 14... Be8 {[%clk 0:01:55.2]} 15. f4
{[%clk 0:02:59.6]} 15... Qd5 {[%clk 0:01:53.9]} 16. Qxd5 {[%clk 0:02:56.5]}
16... exd5 {[%clk 0:01:55.8]} 17. Be2 {[%clk 0:02:28.7]} 17... Rd8 {[%clk
0:01:49.1]} 18. Bf3 {[%clk 0:02:28.3]} 18... Bxe5 {[%clk 0:01:45.3]} 19. fxe5
{[%clk 0:02:16]} 19... c6 {[%clk 0:01:44]} 20. Rhf1 {[%clk 0:02:04.6]} 20... Bd7
{[%clk 0:01:45]} 21. Be2 {[%clk 0:02:04.4]} 21... Kg7 {[%clk 0:01:39.4]} 22. Rf6
{[%clk 0:02:05.1]} 22... Be6 {[%clk 0:01:40.5]} 23. Rdf1 {[%clk 0:02:03]} 23...
c5 {[%clk 0:01:40.6]} 24. c3 {[%clk 0:02:03.3]} 24... cxd4 {[%clk 0:01:40.8]}
25. cxd4 {[%clk 0:02:05.2]} 25... Rc8+ {[%clk 0:01:42.4]} 26. Kd2 {[%clk
0:02:06.3]} 26... Rc7 {[%clk 0:01:39.8]} 27. Bd3 {[%clk 0:02:06.7]} 27... Re8
{[%clk 0:01:27.1]} 28. h4 {[%clk 0:02:04.5]} 28... h5 {[%clk 0:01:27.4]} 29. g3
{[%clk 0:01:59.6]} 29... a5 {[%clk 0:01:18.8]} 30. Rc1 {[%clk 0:01:49.3]} 30...
Rxc1 {[%clk 0:01:16.5]} 31. Kxc1 {[%clk 0:01:51.2]} 31... Rc8+ {[%clk
0:01:17.5]} 32. Kd2 {[%clk 0:01:51.9]} 32... Rc6 {[%clk 0:01:05.2]} 33. Bb5
{[%clk 0:01:37]} 33... Rc7 {[%clk 0:00:58.8]} 34. a3 {[%clk 0:01:34.9]} 34...
Kf8 {[%clk 0:00:58.5]} 35. Bd3 {[%clk 0:01:34.7]} 35... Ke7 {[%clk 0:00:59]} 36.
Rf1 {[%clk 0:01:34.7]} 36... Bd7 {[%clk 0:00:47.4]} 37. Rc1 {[%clk 0:01:31.7]}
37... Rxc1 {[%clk 0:00:47.7]} 38. Kxc1 {[%clk 0:01:33.6]} 38... f6 {[%clk
0:00:47.2]} 39. Bxg6 {[%clk 0:01:30.8]} 39... fxe5 {[%clk 0:00:47.6]} 40. dxe5
{[%clk 0:01:32.2]} 40... Bg4 {[%clk 0:00:48.7]} 41. Kd2 {[%clk 0:01:14.9]} 41...
Ke6 {[%clk 0:00:49.9]} 42. Bd3 {[%clk 0:01:04.5]} 42... Kxe5 {[%clk 0:00:51.2]}
43. Ke3 {[%clk 0:01:03.5]} 43... d4+ {[%clk 0:00:42.1]} 44. Kf2 {[%clk 0:00:57]}
44... Bf5 {[%clk 0:00:41.8]} 45. Be2 {[%clk 0:00:57.5]} 45... Bg6 {[%clk
0:00:42.4]} 46. g4 {[%clk 0:00:57.8]} 46... hxg4 {[%clk 0:00:37.4]} 47. Bxg4
{[%clk 0:00:59.1]} 47... Kf4 {[%clk 0:00:33.9]} 48. Bd1 {[%clk 0:00:58.2]} 48...
d3 {[%clk 0:00:30.1]} 49. h5 {[%clk 0:00:58.6]} 49... Bh7 {[%clk 0:00:29.5]} 50.
h6 {[%clk 0:00:59.7]} 50... Kg5 {[%clk 0:00:22.8]} 51. Ke3 {[%clk 0:00:57.8]}
51... Kxh6 {[%clk 0:00:24]} 52. Ba4 {[%clk 0:00:58.7]} 52... Kg5 {[%clk
0:00:22.7]} 53. Bb5 {[%clk 0:01:00]} 53... Kf6 {[%clk 0:00:23.1]} 54. Bxd3
{[%clk 0:01:01.4]} 54... Bg8 {[%clk 0:00:24.4]} 55. Kd4 {[%clk 0:01:01.5]} 55...
Ke7 {[%clk 0:00:24.8]} 56. Bc4 {[%clk 0:01:01.4]} 56... Bxc4 {[%clk 0:00:19.2]}
57. Kxc4 {[%clk 0:01:02]} 57... Kd6 {[%clk 0:00:20.7]} 58. Kb5 {[%clk
0:01:02.7]} 58... Kc7 {[%clk 0:00:22.2]} 59. Ka6 {[%clk 0:00:59.1]} 59... Kc6
{[%clk 0:00:18.4]} 60. b4 {[%clk 0:00:59.9]} 60... axb4 {[%clk 0:00:18.6]} 61.
axb4 {[%clk 0:01:01.3]} 61... b5 {[%clk 0:00:19.8]} 62. Ka5 {[%clk 0:01:01.9]}
62... Kc7 {[%clk 0:00:21.2]} 63. Kxb5 {[%clk 0:01:03.1]} 63... Kb7 {[%clk
0:00:22.8]} 64. Kc5 {[%clk 0:01:04.7]} 64... Kc7 {[%clk 0:00:24]} 65. b5 {[%clk
0:01:05.9]} 65... Kb7 {[%clk 0:00:25.4]} 66. b6 {[%clk 0:01:06.5]} 66... Kb8
{[%clk 0:00:26.7]} 67. Kb5 {[%clk 0:01:08]} 67... Kb7 {[%clk 0:00:27.8]} 68. Ka5
{[%clk 0:01:08.8]} 68... Kb8 {[%clk 0:00:29.2]} 69. Kb5 {[%clk 0:01:08.6]} 69...
Kb7 {[%clk 0:00:30.3]} 70. Kc5 {[%clk 0:01:09.7]} 70... Kb8 {[%clk 0:00:30.4]}
71. Kc6 {[%clk 0:01:11.2]} 71... Kc8 {[%clk 0:00:31.4]} 72. b7+ {[%clk
0:01:12.4]} 72... Kb8 {[%clk 0:00:32.7]} 73. Kb6 {[%clk 0:01:13.9]} 1/2-1

[Event "Open Nuevo Centro. Jornada 2"]
[Site "Chess.com"]
[Date "2020.06.26"]
[Round "4"]
[White "Gimeno Higueras, Roberto"]
[Black "Bosch Jordà, Ricard"]
[Result "1-0"]
[WhiteElo "1996"]
[BlackElo "1758"]
[TimeControl "180+2"]
[EndTime "11:14:17 PDT"]
[Termination "Victoria de Chicogrande2 por tiempo"]

1. e4 {[%clk 0:03:01.9]} 1... c5 {[%clk 0:03:00.3]} 2. c3 {[%clk 0:03:02.7]}
2... Nf6 {[%clk 0:03:00.5]} 3. e5 {[%clk 0:03:03.7]} 3... Nd5 {[%clk 0:03:01.7]}
4. d4 {[%clk 0:03:04.9]} 4... cxd4 {[%clk 0:03:02.6]} 5. Nf3 {[%clk 0:03:06.3]}
5... Nc6 {[%clk 0:03:00.3]} 6. cxd4 {[%clk 0:03:07.8]} 6... d6 {[%clk
0:03:00.3]} 7. Bc4 {[%clk 0:03:09]} 7... dxe5 {[%clk 0:03:01.5]} 8. dxe5 {[%clk
0:03:09.6]} 8... Nb6 {[%clk 0:03:02.5]} 9. Qxd8+ {[%clk 0:03:08.2]} 9... Nxd8
{[%clk 0:03:03.4]} 10. Bb3 {[%clk 0:03:06.1]} 10... Be6 {[%clk 0:02:42.7]} 11.
Nbd2 {[%clk 0:03:03.6]} 11... g6 {[%clk 0:02:36.6]} 12. O-O {[%clk 0:03:03.9]}
12... Bg7 {[%clk 0:02:37.2]} 13. Ne4 {[%clk 0:02:59.7]} 13... O-O {[%clk
0:02:29.9]} 14. Bg5 {[%clk 0:02:55.2]} 14... Bxb3 {[%clk 0:02:07.6]} 15. axb3
{[%clk 0:02:55.6]} 15... Nc6 {[%clk 0:02:02.5]} 16. Nc5 {[%clk 0:02:47.8]} 16...
Nxe5 {[%clk 0:01:21.9]} 17. Nxe5 {[%clk 0:02:13.4]} 17... Bxe5 {[%clk
0:01:11.6]} 18. Bxe7 {[%clk 0:02:13.9]} 18... Rfe8 {[%clk 0:01:04.5]} 19. Bg5
{[%clk 0:02:08.9]} 19... Bxb2 {[%clk 0:00:44.6]} 20. Ra2 {[%clk 0:02:09.3]}
20... Bg7 {[%clk 0:00:23.5]} 21. Nxb7 {[%clk 0:02:09.2]} 21... Reb8 {[%clk
0:00:17.4]} 22. Nc5 {[%clk 0:02:01.5]} 22... Nd5 {[%clk 0:00:12.4]} 23. Rd1
{[%clk 0:01:57.1]} 23... Nb4 {[%clk 0:00:10.5]} 24. Ra4 {[%clk 0:01:51.1]} 24...
Nc2 {[%clk 0:00:08]} 25. h3 {[%clk 0:01:40.6]} 25... Nd4 {[%clk 0:00:08.3]} 26.
Rd3 {[%clk 0:01:28.6]} 26... Rb5 {[%clk 0:00:05.3]} 27. Be7 {[%clk 0:01:23.4]}
27... Ne2+ {[%clk 0:00:03.1]} 28. Kh2 {[%clk 0:01:16.7]} 28... Nc3 {[%clk
0:00:04.2]} 29. Rc4 {[%clk 0:01:12.9]} 29... Rc8 {[%clk 0:00:03.5]} 30. Rdxc3
{[%clk 0:01:03.3]} 30... Bxc3 {[%clk 0:00:03.5]} 31. Rxc3 {[%clk 0:01:04.6]}
31... a5 {[%clk 0:00:03.8]} 32. h4 {[%clk 0:00:57.1]} 32... f5 {[%clk
0:00:04.4]} 33. Bd6 {[%clk 0:00:45.6]} 33... Rc6 {[%clk 0:00:03.9]} 34. Rd3
{[%clk 0:00:27.1]} 34... Rcxc5 {[%clk 0:00:03]} 35. Bxc5 {[%clk 0:00:27.8]}
35... Rxc5 {[%clk 0:00:04.6]} 36. f3 {[%clk 0:00:27.7]} 36... Rb5 {[%clk
0:00:05.7]} 37. Kg3 {[%clk 0:00:28.8]} 37... Rb4 {[%clk 0:00:06.9]} 38. Rd5
{[%clk 0:00:27.5]} 38... a4 {[%clk 0:00:07.7]} 39. bxa4 {[%clk 0:00:27.5]} 39...
Rxa4 {[%clk 0:00:09.6]} 40. Rd7 {[%clk 0:00:28.3]} 40... Rc4 {[%clk 0:00:09.8]}
41. Kh3 {[%clk 0:00:26.3]} 41... Rb4 {[%clk 0:00:10.6]} 42. g3 {[%clk
0:00:27.4]} 42... Rc4 {[%clk 0:00:11.6]} 43. Kg2 {[%clk 0:00:26.3]} 43... Rb4
{[%clk 0:00:12.1]} 44. Kf2 {[%clk 0:00:27.6]} 44... Ra4 {[%clk 0:00:12.4]} 45.
Ke3 {[%clk 0:00:28.7]} 45... Rb4 {[%clk 0:00:12.9]} 46. Kf2 {[%clk 0:00:24.7]}
46... Rb3 {[%clk 0:00:13]} 47. Kg2 {[%clk 0:00:25.7]} 47... Ra3 {[%clk
0:00:13.4]} 48. Re7 {[%clk 0:00:23.7]} 48... Rb3 {[%clk 0:00:13.5]} 49. h5
{[%clk 0:00:22.6]} 49... Rb2+ {[%clk 0:00:07.7]} 50. Kh3 {[%clk 0:00:23.2]}
50... Rb3 {[%clk 0:00:08.5]} 51. hxg6 {[%clk 0:00:23.1]} 51... hxg6 {[%clk
0:00:08.4]} 52. f4 {[%clk 0:00:24.3]} 52... Kf8 {[%clk 0:00:04]} 53. Rc7 {[%clk
0:00:24.5]} 53... Re3 {[%clk 0:00:03.4]} 54. Kh4 {[%clk 0:00:25.5]} 1

[Event "Open Nuevo Centro. Jornada 2"]
[Site "Chess.com"]
[Date "2020.06.26"]
[Round "4"]
[White "Remolar Gallen, Jose"]
[Black "Kovacevic, Slobodan"]
[Result "1-0"]
[WhiteElo "2360"]
[BlackElo "2109"]
[TimeControl "180+2"]
[EndTime "11:14:25 PDT"]
[Termination "Victoria de ChessMonguer por tiempo"]

1. d4 {[%clk 0:03:01.9]} 1... Nf6 {[%clk 0:02:58.4]} 2. c4 {[%clk 0:03:02.1]}
2... e6 {[%clk 0:02:57.9]} 3. Nf3 {[%clk 0:03:02.6]} 3... c5 {[%clk 0:02:54.4]}
4. e3 {[%clk 0:03:00.4]} 4... cxd4 {[%clk 0:02:52.9]} 5. exd4 {[%clk 0:02:59.6]}
5... d6 {[%clk 0:02:52.7]} 6. Nc3 {[%clk 0:03:00.3]} 6... b6 {[%clk 0:02:51.9]}
7. Be2 {[%clk 0:02:54]} 7... Bb7 {[%clk 0:02:50.7]} 8. O-O {[%clk 0:02:55.2]}
8... Nbd7 {[%clk 0:02:49.7]} 9. h3 {[%clk 0:02:49.6]} 9... Rc8 {[%clk
0:02:48.1]} 10. Bf4 {[%clk 0:02:50.2]} 10... Qc7 {[%clk 0:02:46.9]} 11. Rc1
{[%clk 0:02:50.2]} 11... a6 {[%clk 0:02:46]} 12. Re1 {[%clk 0:02:48.3]} 12...
Be7 {[%clk 0:02:44.7]} 13. Bh2 {[%clk 0:02:26.4]} 13... O-O {[%clk 0:02:42.3]}
14. d5 {[%clk 0:02:05.1]} 14... e5 {[%clk 0:02:39.9]} 15. b4 {[%clk 0:01:47.7]}
15... Rfe8 {[%clk 0:02:37.5]} 16. a3 {[%clk 0:01:46.5]} 16... Bf8 {[%clk
0:02:35.9]} 17. Nd2 {[%clk 0:01:47.9]} 17... Qb8 {[%clk 0:02:29.9]} 18. Nb3
{[%clk 0:01:47.8]} 18... g6 {[%clk 0:02:26.3]} 19. Bf1 {[%clk 0:01:43.4]} 19...
Bh6 {[%clk 0:02:24.5]} 20. Rc2 {[%clk 0:01:41.5]} 20... Nh5 {[%clk 0:02:23.3]}
21. a4 {[%clk 0:01:37.2]} 21... f5 {[%clk 0:02:18.1]} 22. a5 {[%clk 0:01:21.1]}
22... Bf8 {[%clk 0:02:10.6]} 23. g4 {[%clk 0:01:11.7]} 23... Ng7 {[%clk
0:02:05.7]} 24. Na4 {[%clk 0:00:50.8]} 24... Ba8 {[%clk 0:01:53]} 25. Qb1 {[%clk
0:00:48.4]} 25... fxg4 {[%clk 0:01:49.2]} 26. hxg4 {[%clk 0:00:48.5]} 26... b5
{[%clk 0:01:38.2]} 27. cxb5 {[%clk 0:00:48.4]} 27... axb5 {[%clk 0:01:37.1]} 28.
Nc3 {[%clk 0:00:47.2]} 28... Nf6 {[%clk 0:01:29.6]} 29. Nxb5 {[%clk 0:00:36.8]}
29... Bxd5 {[%clk 0:01:19.9]} 30. a6 {[%clk 0:00:33.6]} 30... Nxg4 {[%clk
0:01:17.3]} 31. a7 {[%clk 0:00:30.1]} 31... Qb6 {[%clk 0:01:12.4]} 32. Bh3
{[%clk 0:00:27.4]} 32... Be6 {[%clk 0:01:05.8]} 33. Bxg4 {[%clk 0:00:26.7]}
33... Bxg4 {[%clk 0:01:04.2]} 34. Rxc8 {[%clk 0:00:26]} 34... Rxc8 {[%clk
0:01:02.1]} 35. Qe4 {[%clk 0:00:26.8]} 35... Be6 {[%clk 0:00:54.7]} 36. a8=Q
{[%clk 0:00:26.5]} 36... Rxa8 {[%clk 0:00:53.2]} 37. Qxa8 {[%clk 0:00:28.4]}
37... Qxb5 {[%clk 0:00:51.7]} 38. Qa5 {[%clk 0:00:25.3]} 38... Qd3 {[%clk
0:00:46.7]} 39. Nc1 {[%clk 0:00:18.7]} 39... Qd2 {[%clk 0:00:45]} 40. Rf1 {[%clk
0:00:19.7]} 40... Bd5 {[%clk 0:00:41.5]} 41. Bg3 {[%clk 0:00:15.5]} 41... Qd4
{[%clk 0:00:36.8]} 42. Qa3 {[%clk 0:00:12.5]} 42... Nf5 {[%clk 0:00:30.1]} 43.
Qd3 {[%clk 0:00:10.5]} 43... Nxg3 {[%clk 0:00:22.2]} 44. Qxd4 {[%clk 0:00:09.4]}
44... exd4 {[%clk 0:00:20.2]} 45. fxg3 {[%clk 0:00:10.6]} 45... Bc4 {[%clk
0:00:16]} 46. Rd1 {[%clk 0:00:11.4]} 46... d5 {[%clk 0:00:09.2]} 47. Rxd4 {[%clk
0:00:06.4]} 47... Bxb4 {[%clk 0:00:08.4]} 48. Nd3 {[%clk 0:00:04.9]} 48... Bc3
{[%clk 0:00:06]} 49. Rxc4 {[%clk 0:00:03.1]} 49... dxc4 {[%clk 0:00:04.9]} 50.
Nc1 {[%clk 0:00:04.1]} 1